[Event "1000GM Winter IM Norm-2 2024"]
[Site "Sunnyvale/"]
[Date "2024.01.07"]
[Round "9.3"]
[White "Mede, Istvan"]
[Black "Goktepe, Derin"]
[Result "1/2-1/2"]
[ECO "C47"]
[WhiteElo "2187"]
[BlackElo "2187"]
[Annotator "ChessBase"]
[PlyCount "44"]
[EventDate "2023.12.14"]
[EventType "schev"]
[EventCountry "USA"]
[SourceTitle "playchess.com"]
[Source "ChessBase"]
[SourceQuality "1"]
[TimeControl "5400+30"]

1. e4 {[%emt 0:03:50]} e5 {[%emt 0:00:13]} 2. Nf3 {[%emt 0:00:04]} Nc6 {[%emt 0:00:13]} 3. Nc3 {[%emt 0:00:04]} Nf6 {[%emt 0:00:36]} 4. d4 {[%emt 0:00:35]} exd4 {[%emt 0:00:41]} 5. Nxd4 {[%emt 0:00:04]} Bb4 {[%emt 0:00:47]} 6. Nxc6 {[%emt 0:00:10]} bxc6 {[%emt 0:00:09]} 7. Bd3 {[%emt 0:00:02]} d5 {[%emt 0:01:10]} 8. exd5 {[%emt 0:00:04]} cxd5 {[%emt 0:00:33]} 9. O-O {[%emt 0:00:04]} O-O {[%emt 0:01:31]} 10. h3 {[%emt 0:00:05]} c6 {[%emt 0:06:28]} 11. Qf3 {[%emt 0:00:21]} Bd6 {[%emt 0:05:31]} 12. Bf4 {[%emt 0:00:25]} Rb8 {[%emt 0:07:50]} 13. b3 {[%emt 0:00:06]} Qc7 {[%emt 0:03:10]} 14. Bxd6 {[%emt 0:02:19]} Qxd6 {[%emt 0:00:36]} 15. Qg3 {[%emt 0:00:09]} Qxg3 {[%emt 0:06:05]} 16. fxg3 {[%emt 0:00:03]} Re8 {[%emt 0:01:31]} 17. Rae1 {[%emt 0:01:13]} Rxe1 {[%emt 0:01:52]} 18. Rxe1 {[%emt 0:00:03]} Be6 {[%emt 0:02:03]} 19. Na4 {[%emt 0:04:11]} Nd7 {[%emt 0:01:08]} 20. Kf2 {[%emt 0:00:36]} h6 {[%emt 0:05:04]} 21. Ke3 c5 22. Kd2 Kf8 1/2-1/2

[Event "1000GM Winter IM Norm-2 2024"]
[Site "Sunnyvale/"]
[Date "2024.01.07"]
[Round "9.4"]
[White "Stopa, Jacek"]
[Black "Atwell, Rose"]
[Result "1-0"]
[ECO "A07"]
[WhiteElo "2344"]
[BlackElo "2104"]
[Annotator "RC"]
[PlyCount "91"]
[EventDate "2023.12.14"]
[EventType "schev"]
[EventCountry "USA"]
[SourceTitle "playchess.com"]
[Source "ChessBase"]
[SourceQuality "1"]
[TimeControl "5400+30"]

1. Nf3 {[%emt 0:00:07]} d5 {[%emt 0:00:05]} 2. g3 {[%emt 0:00:17]} Nf6 {[%emt 0:00:13]} 3. Bg2 {[%emt 0:00:12]} c6 {[%emt 0:00:26]} 4. O-O {[%emt 0:01:55]} Bg4 {[%emt 0:00:08]} 5. d3 {[%emt 0:02:17]} Nbd7 {[%emt 0:01:18]} 6. h3 {[%emt 0:00:18]} Bh5 {[%emt 0:07:41]} 7. Nc3 {[%emt 0:04:41]} e5 {[%emt 0:02:53]} 8. e4 {[%emt 0:01:02]} dxe4 {[%emt 0:02:47]} 9. Nxe4 {[%emt 0:03:03]} Nxe4 {[%emt 0:01:13]} 10. dxe4 {[%emt 0:00:05]} f6 {[%emt 0:09:55]} 11. Qe2 {[%emt 0:03:42]} Be7 {[%emt 0:09:33]} 12. Rd1 {[%emt 0:03:27]} Qc7 {[%emt 0:02:44]} 13. a4 {[%emt 0:01:06]} a5 {[%emt 0:03:41]} 14. Be3 {[%emt 0:04:51]} O-O {[%emt 0:01:44]} 15. Rd2 {[%emt 0:04:19]} Rfd8 {[%emt 0:03:44]} 16. Qf1 {[%emt 0:02:21]} Bf7 {[%emt 0:02:40]} 17. Nh4 {[%emt 0:04:39]} g6 {[%emt 0:03:13]} 18. Nf3 {[%emt 0:01:34]} Nc5 {[%emt 0:04:45]} 19. Rxd8+ {[%emt 0:02:43]} Rxd8 {[%emt 0:00:08]} 20. Nh2 {[%emt 0:00:06]} Be6 {[%emt 0:04:14]} 21. Ng4 {[%emt 0:04:47]} Kg7 {[%emt 0:02:08]} 22. Qc1 {[%emt 0:06:09]} Bxg4 {[%emt 0:01:47]} 23. hxg4 {[%emt 0:00:10]} Ne6 {[%emt 0:01:22]} 24. Bf3 {[%emt 0:08:16]} Bc5 {[%emt 0:05:02]} 25. Bxc5 {[%emt 0:06:21]} Nxc5 {[%emt 0:00:03]} 26. g5 {[%emt 0:00:07]} f5 {[%emt 0:03:11]} 27. exf5 {[%emt 0:03:40]} gxf5 {[%emt 0:00:02]} 28. Qe3 {[%emt 0:01:09]} Ne6 {[%emt 0:00:42]} 29. Re1 {[%emt 0:03:26]} e4 {[%emt 0:03:23]} 30. g4 {[%emt 0:02:22]} Qe7 {[%emt 0:06:39]} 31. Qc3+ {[%emt 0:06:31]} Nd4 {[%emt 0:01:29]} 32. gxf5 {[%emt 0:01:37]} Qxg5+ {[%emt 0:00:32]} 33. Bg2 {[%emt 0:00:01]} Qxf5 {[%emt 0:01:46]} 34. Rxe4 {[%emt 0:02:01]} c5 {[%emt 0:00:28]} 35. Qxa5 {[%emt 0:05:00]} Rd7 {[%emt 0:00:50]} 36. Qc3 {[%emt 0:00:21]} Kf8 {[%emt 0:00:57]} 37. Qh3 {[%emt 0:01:42]} Qg5 {[%emt 0:01:08]} 38. Kh2 {[%emt 0:02:41]} Nf5 {[%emt 0:01:52]} 39. Qg4 {[%emt 0:01:14]} Qh6+ {[%emt 0:00:31]} 40. Bh3 {[%emt 0:00:25]} Rf7 {[%emt 0:00:22]} 41. Qf4 {[%emt 0:00:43]} Qxf4+ {[%emt 0:01:08]} 42. Rxf4 {[%emt 0:00:11]} Nd4 {[%emt 0:00:33]} 43. Rxf7+ {[%emt 0:00:16]} Kxf7 {[%emt 0:00:02]} 44. c3 {[%emt 0:00:25]} Nb3 {[%emt 0:02:41]} 45. Bg2 {[%emt 0:00:22]} Na5 {[%emt 0:00:24]} 46. b4 {[%emt 0:00:29]} 1-0

[Event "1000GM Winter IM Norm-2 2024"]
[Site "Sunnyvale/"]
[Date "2024.01.07"]
[Round "9.5"]
[White "Calderin Gonzalez, Roberto"]
[Black "Sivakumar, Shaaketh"]
[Result "1/2-1/2"]
[ECO "D55"]
[WhiteElo "2413"]
[BlackElo "2364"]
[Annotator "RC"]
[PlyCount "40"]
[EventDate "2023.12.14"]
[EventType "schev"]
[EventCountry "USA"]
[SourceTitle "playchess.com"]
[Source "ChessBase"]
[SourceQuality "1"]
[TimeControl "5400+30"]

1. d4 {[%emt 0:09:44]} e6 {[%emt 0:00:09]} 2. Nf3 {[%emt 0:00:11]} Nf6 {[%emt 0:00:11]} 3. Bg5 {[%emt 0:00:33]} Be7 {[%emt 0:00:09]} 4. c4 {[%emt 0:00:42]} d5 {[%emt 0:00:27]} 5. Nc3 {[%emt 0:00:08]} O-O {[%emt 0:00:15]} 6. e3 {[%emt 0:00:07]} b6 {[%emt 0:00:27]} 7. cxd5 {[%emt 0:02:47]} Nxd5 {[%emt 0:00:22]} 8. Nxd5 {[%emt 0:00:11]} exd5 {[%emt 0:00:07]} 9. Bxe7 {[%emt 0:00:07]} Qxe7 {[%emt 0:00:01]} 10. Rc1 {[%emt 0:00:21]} Be6 {[%emt 0:00:56]} 11. Qa4 {[%emt 0:01:18]} c5 {[%emt 0:01:01]} 12. dxc5 {[%emt 0:04:21]} bxc5 {[%emt 0:00:03]} 13. Qa3 {[%emt 0:00:07]} Nd7 {[%emt 0:02:32]} 14. Bb5 {[%emt 0:00:44]} Rfc8 {[%emt 0:01:27]} 15. Nd4 {[%emt 0:07:04]} Ne5 {[%emt 0:05:59]} 16. O-O {[%emt 0:01:00]} Rc7 {[%emt 0:07:49]} 17. Nxe6 {[%emt 0:06:06]} fxe6 {[%emt 0:00:18]} 18. Qc3 {[%emt 0:08:39]} Nf7 {[%emt 0:00:26]} 19. Bd3 {[%emt 0:00:24]} Qf6 {[%emt 0:00:21]} 20. Qc2 {[%emt 0:00:44]} g6 {[%emt 0:00:13]} 1/2-1/2

[Event "1000GM Winter IM Norm-2 2024"]
[Site "Sunnyvale/"]
[Date "2024.01.07"]
[Round "9.6"]
[White "Yao, Hanchi"]
[Black "Zuluaga Mancilla, Cesar"]
[Result "0-1"]
[ECO "D38"]
[WhiteElo "1998"]
[BlackElo "2251"]
[Annotator "RC"]
[PlyCount "163"]
[EventDate "2023.12.14"]
[EventType "schev"]
[EventCountry "USA"]
[SourceTitle "playchess.com"]
[Source "ChessBase"]
[SourceQuality "1"]
[TimeControl "5400+30"]

1. d4 {[%emt 0:02:35]} Nf6 {[%emt 0:00:06]} 2. c4 {[%emt 0:00:06]} e6 {[%emt 0:00:05]} 3. Nc3 {[%emt 0:00:19]} Bb4 {[%emt 0:00:06]} 4. Qc2 {[%emt 0:00:04]} d5 {[%emt 0:00:31]} 5. cxd5 {[%emt 0:01:50]} exd5 {[%emt 0:00:13]} 6. Bg5 {[%emt 0:00:37]} c6 {[%emt 0:00:14]} 7. Nf3 {[%emt 0:01:06]} h6 {[%emt 0:00:54]} 8. Bh4 {[%emt 0:00:52]} Be6 {[%emt 0:01:19]} 9. e3 {[%emt 0:01:08]} Nbd7 {[%emt 0:00:05]} 10. Bd3 {[%emt 0:00:26]} O-O {[%emt 0:00:46]} 11. O-O {[%emt 0:02:10]} Re8 {[%emt 0:00:34]} 12. h3 {[%emt 0:02:31]} Bd6 {[%emt 0:00:20]} 13. Ne2 {[%emt 0:01:08]} Rc8 {[%emt 0:03:37]} 14. Bg3 {[%emt 0:02:43]} Bf8 {[%emt 0:00:28]} 15. Nf4 {[%emt 0:13:55]} Ne4 {[%emt 0:00:54]} 16. Nxe6 {[%emt 0:05:11]} Rxe6 {[%emt 0:00:07]} 17. Bxe4 {[%emt 0:00:04]} dxe4 {[%emt 0:01:09]} 18. Ne5 {[%emt 0:00:27]} Nf6 {[%emt 0:00:14]} 19. Qb3 {[%emt 0:01:58]} Qb6 {[%emt 0:00:49]} 20. Qxb6 {[%emt 0:01:21]} axb6 {[%emt 0:00:50]} 21. Rac1 {[%emt 0:01:15]} Ra8 {[%emt 0:00:05]} 22. a3 {[%emt 0:00:09]} b5 {[%emt 0:00:17]} 23. f3 {[%emt 0:04:12]} Bd6 {[%emt 0:00:01]} 24. Bh2 {[%emt 0:10:23]} exf3 {[%emt 0:01:26]} 25. Rxf3 {[%emt 0:00:19]} Bxe5 {[%emt 0:00:10]} 26. Bxe5 {[%emt 0:00:59]} Nd7 {[%emt 0:00:15]} 27. Bg3 {[%emt 0:02:00]} Nb6 {[%emt 0:00:07]} 28. Rc2 {[%emt 0:04:49]} Rae8 {[%emt 1:28:48]} 29. Kf2 Nd5 30. Re2 f6 31. Bh2 Re4 32. Bg1 g6 {[%emt 0:00:00]} 33. Ke1 {[%emt 0:42:23]} f5 {[%emt 0:00:00]} 34. g3 {[%emt 0:00:00]} h5 {[%emt 0:00:00]} 35. Kd2 {[%emt 0:00:00]} Kf7 {[%emt 0:03:30]} 36. Bf2 Ke6 37. Kd3 Kd7 38. h4 Ra8 {[%emt 0:00:00]} 39. Be1 {[%emt 0:00:00]} Rae8 {[%emt 0:00:00]} 40. Rc2 {[%emt 0:03:30]} b6 41. Bd2 {[%emt 0:00:00]} Rc8 {[%emt 0:00:00]} 42. b4 {[%emt 0:00:00]} Ra8 {[%emt 0:00:00]} 43. Bc1 {[%emt 0:00:00]} Kd6 {[%emt 0:00:00]} 44. Rff2 {[%emt 0:02:00]} Re6 {[%emt 0:00:00]} 45. Rg2 {[%emt 0:00:30]} Nf6 {[%emt 0:00:00]} 46. Bb2 {[%emt 0:00:30]} Kd5 {[%emt 0:00:00]} 47. Rge2 {[%emt 0:00:00]} Ne4 {[%emt 0:00:00]} 48. Rg2 {[%emt 0:00:00]} Nd6 {[%emt 0:00:00]} 49. Bc1 {[%emt 0:00:00]} Ne4 {[%emt 0:00:00]} 50. Bb2 {[%emt 0:00:00]} Rae8 {[%emt 0:00:00]} 51. Bc1 {[%emt 0:00:00]} R6e7 {[%emt 0:00:00]} 52. Rb2 {[%emt 0:00:00]} Ra8 {[%emt 0:00:00]} 53. Rb3 {[%emt 0:00:00]} Rb7 {[%emt 0:00:00]} 54. Rb1 {[%emt 0:00:00]} Ra4 {[%emt 0:00:00]} 55. Rc2 {[%emt 0:00:00]} Rd7 {[%emt 0:00:00]} 56. Bb2 {[%emt 0:00:00]} Rd6 {[%emt 0:00:00]} 57. Rbc1 {[%emt 0:00:00]} Ra8 {[%emt 0:00:00]} 58. Rg1 {[%emt 0:00:00]} Re6 {[%emt 0:00:00]} 59. Rgg2 {[%emt 0:00:00]} Rae8 {[%emt 0:00:00]} 60. Bc1 {[%emt 0:00:00]} Nd6 {[%emt 0:00:00]} 61. Rge2 {[%emt 0:00:00]} Re4 {[%emt 0:00:00]} 62. Rg2 {[%emt 0:00:00]} Nc4 {[%emt 0:00:00]} 63. Rge2 {[%emt 0:00:00]} Rg4 {[%emt 0:00:00]} 64. Rg2 {[%emt 0:00:00]} Nd6 {[%emt 0:00:00]} 65. Bd2 {[%emt 0:00:00]} Ra8 {[%emt 0:00:00]} 66. Bc1 {[%emt 0:00:00]} Ne4 {[%emt 0:00:00]} 67. Rg1 {[%emt 0:00:00]} Nxg3 {[%emt 0:00:00]} 68. Rcg2 {[%emt 0:00:00]} Ne4 {[%emt 0:00:00]} 69. Bb2 {[%emt 0:00:00]} Rd8 {[%emt 0:00:00]} 70. Ke2 {[%emt 0:12:00]} Nd6 {[%emt 0:00:00]} 71. Bc1 {[%emt 0:00:00]} Re8 {[%emt 0:00:00]} 72. Kd3 {[%emt 0:01:00]} Ree4 73. Rg3 {[%emt 0:00:00]} Rxg3 {[%emt 0:00:00]} 74. Rxg3 {[%emt 0:00:00]} Rg4 {[%emt 0:00:00]} 75. Rh3 {[%emt 0:00:00]} Rg2 {[%emt 0:00:00]} 76. Rh1 {[%emt 0:00:00]} Ne4 {[%emt 0:00:00]} 77. Rf1 {[%emt 0:00:00]} Rg4 {[%emt 0:00:00]} 78. Rf4 {[%emt 0:00:00]} Rg1 {[%emt 0:00:00]} 79. Bb2 {[%emt 0:00:00]} Rd1+ {[%emt 0:00:00]} 80. Kc2 {[%emt 0:00:00]} Rd2+ {[%emt 0:00:00]} 81. Kc1 {[%emt 0:00:00]} Re2 {[%emt 0:00:00]} 82. Rf3 {[%emt 0:00:00]} 0-1

[Event "1000GM Winter IM Norm-2 2024"]
[Site "Sunnyvale/"]
[Date "2024.01.07"]
[Round "9.7"]
[White "Bhatta, Rohit"]
[Black "Hajnal, Zoltan"]
[Result "1/2-1/2"]
[ECO "D13"]
[WhiteElo "1867"]
[BlackElo "2383"]
[Annotator "RC"]
[PlyCount "43"]
[EventDate "2023.12.14"]
[EventType "schev"]
[EventCountry "USA"]
[SourceTitle "playchess.com"]
[Source "ChessBase"]
[SourceQuality "1"]
[TimeControl "5400+30"]

1. d4 {[%emt 0:08:10]} d5 {[%emt 0:16:21]} 2. c4 {[%emt 0:00:05]} c6 {[%emt 0:00:02]} 3. cxd5 {[%emt 0:00:20]} cxd5 {[%emt 0:00:03]} 4. Bf4 {[%emt 0:00:09]} Nc6 {[%emt 0:00:07]} 5. e3 {[%emt 0:00:19]} Nf6 {[%emt 0:00:07]} 6. Nc3 {[%emt 0:00:21]} Bf5 {[%emt 0:00:17]} 7. Nf3 {[%emt 0:01:13]} a6 {[%emt 0:00:34]} 8. Ne5 {[%emt 0:02:18]} Qb6 {[%emt 0:03:25]} 9. Nxc6 {[%emt 0:00:14]} bxc6 {[%emt 0:00:25]} 10. Bd3 {[%emt 0:01:01]} Bxd3 {[%emt 0:04:31]} 11. Qxd3 {[%emt 0:00:02]} e6 {[%emt 0:00:07]} 12. O-O {[%emt 0:00:24]} Be7 {[%emt 0:00:19]} 13. a3 {[%emt 0:05:10]} O-O {[%emt 0:01:11]} 14. Rfc1 {[%emt 0:02:10]} Nd7 {[%emt 0:01:39]} 15. Na4 {[%emt 0:05:54]} Qb5 {[%emt 0:00:41]} 16. Qd1 {[%emt 0:02:22]} Rfc8 {[%emt 0:08:39]} 17. b4 {[%emt 0:08:41]} Nb6 {[%emt 0:01:23]} 18. Nc3 {[%emt 0:08:40]} Qc4 {[%emt 0:00:49]} 19. Ne2 {[%emt 0:01:07]} Qb5 {[%emt 0:00:08]} 20. Nc3 {[%emt 0:00:18]} Qc4 {[%emt 0:00:05]} 21. Ne2 {[%emt 0:00:36]} Qb5 {[%emt 0:00:06]} 22. Nc3 {[%emt 0:00:15]} 1/2-1/2

[Event "1000GM Winter IM Norm-2 2024"]
[Site "Sunnyvale/"]
[Date "2024.01.07"]
[Round "9.8"]
[White "Stevens, Adam B"]
[Black "Rodi, Luis Ernesto"]
[Result "0-1"]
[ECO "D35"]
[WhiteElo "1878"]
[BlackElo "2196"]
[Annotator "ChessBase"]
[PlyCount "86"]
[EventDate "2023.12.14"]
[EventType "schev"]
[EventCountry "USA"]
[SourceTitle "playchess.com"]
[Source "ChessBase"]
[SourceQuality "1"]
[TimeControl "5400+30"]

1. d4 {[%emt 0:06:13]} Nf6 {[%emt 0:00:07]} 2. c4 {[%emt 0:00:07]} e6 {[%emt 0:00:18]} 3. Nc3 {[%emt 0:00:07]} d5 {[%emt 0:00:06]} 4. cxd5 {[%emt 0:00:08]} exd5 {[%emt 0:00:06]} 5. Bg5 {[%emt 0:00:16]} c6 {[%emt 0:00:05]} 6. e3 {[%emt 0:00:22]} Bd6 {[%emt 0:00:06]} 7. Bd3 {[%emt 0:00:44]} O-O {[%emt 0:00:09]} 8. Qc2 {[%emt 0:01:30]} h6 {[%emt 0:00:12]} 9. Bh4 {[%emt 0:00:35]} Re8 {[%emt 0:00:07]} 10. Nge2 {[%emt 0:00:38]} a5 {[%emt 0:00:08]} 11. Bg3 {[%emt 0:04:51]} Na6 {[%emt 0:00:25]} 12. a3 {[%emt 0:00:46]} Nc7 {[%emt 0:00:11]} 13. O-O {[%emt 0:01:03]} Ne6 {[%emt 0:04:33]} 14. Rad1 {[%emt 0:02:17]} Ng5 {[%emt 0:00:44]} 15. Rfe1 {[%emt 0:01:40]} Nge4 {[%emt 0:01:07]} 16. Nxe4 {[%emt 0:02:45]} Nxe4 {[%emt 0:01:33]} 17. Bxd6 {[%emt 0:00:49]} Nxd6 {[%emt 0:01:10]} 18. Nc3 {[%emt 0:06:44]} Qg5 {[%emt 0:00:22]} 19. e4 {[%emt 0:01:58]} dxe4 {[%emt 0:00:52]} 20. Nxe4 {[%emt 0:00:15]} Nxe4 {[%emt 0:01:08]} 21. Rxe4 {[%emt 0:02:05]} Bg4 {[%emt 0:06:36]} 22. Rde1 {[%emt 0:02:03]} Rxe4 {[%emt 0:00:59]} 23. Bxe4 {[%emt 0:01:39]} Rd8 {[%emt 0:08:06]} 24. Qc3 {[%emt 0:02:45]} Be6 {[%emt 0:00:14]} 25. g3 {[%emt 0:02:53]} Bh3 {[%emt 0:05:18]} 26. Rd1 {[%emt 0:06:16]} Qb5 {[%emt 0:11:12]} 27. Bf3 {[%emt 0:04:07]} Be6 {[%emt 0:00:42]} 28. Re1 {[%emt 0:03:36]} Qb6 {[%emt 0:00:48]} 29. Rd1 {[%emt 0:02:09]} Bd5 {[%emt 0:01:28]} 30. Be2 {[%emt 0:04:10]} Re8 {[%emt 0:00:24]} 31. Bf1 {[%emt 0:02:10]} a4 {[%emt 0:03:11]} 32. Rd3 {[%emt 0:02:42]} Re6 {[%emt 0:01:18]} 33. Re3 {[%emt 0:03:10]} Rxe3 {[%emt 0:02:26]} 34. fxe3 {[%emt 0:00:06]} Qd8 {[%emt 0:00:15]} 35. Bg2 {[%emt 0:01:22]} Bxg2 {[%emt 0:01:11]} 36. Kxg2 {[%emt 0:00:01]} Qd5+ {[%emt 0:00:07]} 37. Kg1 {[%emt 0:03:43]} Qf3 {[%emt 0:00:15]} 38. Qd2 {[%emt 0:01:02]} g5 {[%emt 0:00:15]} 39. Qf2 {[%emt 0:00:10]} Qe4 {[%emt 0:00:15]} 40. Qe2 {[%emt 0:03:50]} Kg7 {[%emt 0:00:36]} 41. Kf2 {[%emt 0:00:10]} Qh1 {[%emt 0:00:13]} 42. Qh5 {[%emt 0:00:31]} f5 {[%emt 0:02:56]} 43. Qh3 {[%emt 0:05:06]} g4 {[%emt 0:02:07]} 0-1

[Event "1000GM Winter IM Norm-2 2024"]
[Site "Sunnyvale/"]
[Date "2024.01.07"]
[Round "9.9"]
[White "Sivakumar, Shaashwath"]
[Black "Dominguez Aguilar, Guillermo"]
[Result "1-0"]
[ECO "A65"]
[WhiteElo "2205"]
[BlackElo "2319"]
[Annotator "RC"]
[PlyCount "53"]
[EventDate "2023.12.14"]
[EventType "schev"]
[EventCountry "USA"]
[SourceTitle "playchess.com"]
[Source "ChessBase"]
[SourceQuality "1"]
[TimeControl "5400+30"]

1. d4 {[%emt 0:00:02]} Nf6 {[%emt 0:00:39]} 2. c4 {[%emt 0:00:07]} c5 {[%emt 0:00:32]} 3. d5 {[%emt 0:00:05]} e6 {[%emt 0:00:07]} 4. Nc3 {[%emt 0:00:05]} exd5 {[%emt 0:00:09]} 5. cxd5 {[%emt 0:00:05]} d6 {[%emt 0:00:09]} 6. e4 {[%emt 0:00:05]} g6 {[%emt 0:00:09]} 7. Nge2 {[%emt 0:00:04]} Bg7 {[%emt 0:00:06]} 8. Ng3 {[%emt 0:00:25]} a6 {[%emt 0:05:19]} 9. a4 {[%emt 0:00:15]} h5 {[%emt 0:00:17]} 10. Be2 {[%emt 0:00:06]} Qe7 {[%emt 0:03:37]} 11. Bg5 {[%emt 0:02:06]} Bh6 {[%emt 0:00:31]} 12. Bxh6 {[%emt 0:01:05]} Rxh6 {[%emt 0:00:08]} 13. Qc2 {[%emt 0:07:57]} Nbd7 {[%emt 0:02:24]} 14. f4 {[%emt 0:03:13]} Kf8 {[%emt 0:01:23]} 15. O-O-O {[%emt 0:07:32]} Kg7 {[%emt 0:06:50]} 16. Rhe1 {[%emt 0:09:01]} Ng4 {[%emt 0:00:48]} 17. Bxg4 {[%emt 0:08:06]} hxg4 {[%emt 0:00:13]} 18. e5 {[%emt 0:00:04]} dxe5 {[%emt 0:10:40]} 19. d6 {[%emt 0:02:30]} Qd8 {[%emt 0:02:45]} 20. Nd5 {[%emt 0:03:35]} Nf6 {[%emt 0:02:35]} 21. Nxf6 {[%emt 0:02:05]} Qxf6 {[%emt 0:00:09]} 22. d7 {[%emt 0:00:44]} Qxf4+ {[%emt 0:00:11]} 23. Kb1 {[%emt 0:00:10]} Bxd7 {[%emt 0:00:56]} 24. Rxd7 {[%emt 0:00:05]} Rxh2 {[%emt 0:00:04]} 25. Rf1 {[%emt 0:02:40]} Qxg3 {[%emt 0:00:14]} 26. Rfxf7+ {[%emt 0:00:07]} Kh8 {[%emt 0:00:11]} 27. Qxg6 {[%emt 0:00:19]} 1-0